[Event "CZE-ch Youth B16 2022"]
[Site "Luhacovice"]
[Date "2022.03.16"]
[Round "6.11"]
[White "Kubiczek, Michal"]
[Black "Mrazek, Roman"]
[Result "1-0"]
[ECO "D11"]
[WhiteElo "1720"]
[BlackElo "1820"]
[Annotator "NA"]
[PlyCount "51"]
[EventDate "2022.03.12"]
[EventType "swiss"]
[EventCountry "CZE"]
[SourceTitle "playchess.com"]
[Source "ChessBase"]
[SourceQuality "1"]
[TimeControl "40/5400+30:1800+30"]

1. d4 {[%emt 0:00:09]} d5 {[%emt 0:00:24]} 2. c4 {[%emt 0:00:08]} c6 {[%emt 0:00:03]} 3. Nf3 {[%emt 0:00:09]} Nf6 {[%emt 0:00:04]} 4. g3 {[%emt 0:00:06]} Bf5 {[%emt 0:00:16]} 5. Nc3 {[%emt 0:00:13]} e6 {[%emt 0:00:47]} 6. Nh4 {[%emt 0:00:15]} Bg4 {[%emt 0:02:32] 6...dxc4 is a critical line.} 7. f3 {[%emt 0:01:23]} Bh5 {[%emt 0:00:14]} 8. Qb3 {[%emt 0:00:33]} Qb6 {[%emt 0:02:35]} 9. g4 {[%emt 0:00:39]} Bg6 {[%emt 0:01:28]} 10. Qxb6 {[%emt 0:00:28]} axb6 {[%emt 0:00:17]} 11. g5 {[%emt 0:00:23]} Nfd7 {[%emt 0:01:58]} 12. cxd5 {[%emt 0:00:43]} exd5 {[%emt 0:01:48]} 13. e4 {[%emt 0:00:16]} dxe4 {[%emt 0:04:46]} 14. fxe4 {[%emt 0:00:14] [#]} Bb4 $146 {[%emt 0:01:56]} ({Predecessor:} 14... b5 15. Bg2 Na6 16. Be3 Be7 17. Nxg6 hxg6 18. h4 Nb6 19. d5 Nc4 20. Bd4 Bc5 21. Bxg7 {½-½ (53) Samunenkov,I (2293)-Yurovskich,O (2285) Omelnyk 2021}) 15. Bg2 {[%emt 0:02:43]} c5 {[%emt 0:08:57]} 16. Nxg6 {[%emt 0:20:40]} (16. O-O $14) 16... hxg6 {[%emt 0:02:04]} 17. O-O {[%emt 0:08:05]} cxd4 {[%emt 0:09:15]} 18. Nd5 {[%emt 0:04:58]} Bd6 {[%emt 0:08:18]} 19. Bf4 {[%emt 0:02:20]} Ne5 $15 {[%emt 0:02:48]} 20. Rac1 {[%emt 0:09:43]} Nbc6 {[%emt 0:03:38]} 21. b4 {[%emt 0:01:40]} b5 {[%emt 0:02:18]} 22. Rf2 {[%emt 0:10:16]} O-O {[%emt 0:06:54]} 23. Rxc6 {[%emt 0:03:00]} bxc6 {[%emt 0:02:05]} 24. Bxe5 {[%emt 0:00:06]} Bxe5 {[%emt 0:01:19]} 25. Ne7+ {[%emt 0:00:12]} Kh7 {[%emt 0:03:59]} 26. Rf3 {[%emt 0:00:12]} 1-0

[Event "CZE-ch Youth B16 2022"]
[Site "Luhacovice"]
[Date "2022.03.16"]
[Round "6.12"]
[White "Oborny, Stanislav"]
[Black "Zrubek, Adam"]
[Result "1/2-1/2"]
[ECO "B52"]
[WhiteElo "1674"]
[BlackElo "1661"]
[Annotator "NA"]
[PlyCount "84"]
[EventDate "2022.03.12"]
[EventType "swiss"]
[EventCountry "CZE"]
[SourceTitle "playchess.com"]
[Source "ChessBase"]
[SourceQuality "1"]
[TimeControl "40/5400+30:1800+30"]

1. e4 c5 2. Nf3 d6 3. Bb5+ Bd7 4. Bxd7+ Qxd7 5. c4 Nc6 6. d4 cxd4 7. Nxd4 Nf6 8. Nc3 g6 9. f3 Bg7 10. Be3 O-O 11. O-O Rac8 12. b3 a6 13. a4 Qc7 14. Qd2 Rfd8 15. Rfd1 Rd7 16. Rac1 Qd8 17. Nde2 Nb4 18. Nd5 Nbxd5 19. cxd5 Rxc1 20. Rxc1 Rc7 21. Kf2 Qc8 22. Rxc7 Qxc7 23. Qc1 Qxc1 24. Nxc1 Kf8 25. Ke2 e6 26. dxe6 fxe6 27. Kd3 Ke8 28. b4 Nd7 29. f4 Kd8 30. Nb3 Kc7 31. Nd4 Bxd4 32. Bxd4 e5 33. fxe5 dxe5 34. Bc3 Kd6 35. h3 Nf6 36. g4 Ne8 37. Bd2 Nc7 38. Be3 Ne6 39. g5 b5 40. axb5 axb5 41. Ke2 Nd8 42. Kf3 Ne6 1/2-1/2

[Event "CZE-ch Youth B16 2022"]
[Site "Luhacovice"]
[Date "2022.03.17"]
[Round "7.1"]
[White "Smolik, Jachym"]
[Black "Le, Anh Dung"]
[Result "1/2-1/2"]
[ECO "D30"]
[WhiteElo "2277"]
[BlackElo "1998"]
[Annotator "ChessBase"]
[PlyCount "60"]
[EventDate "2022.03.12"]
[EventType "swiss"]
[EventCountry "CZE"]
[SourceTitle "playchess.com"]
[Source "ChessBase"]
[SourceQuality "1"]
[TimeControl "40/5400+30:1800+30"]

1. d4 Nf6 2. Nf3 d5 3. c4 e6 4. Bg5 c6 5. e3 Nbd7 6. Nbd2 Be7 7. Rc1 c5 8. Bd3 O-O 9. O-O b6 10. Qe2 Bb7 11. Bb1 Ne4 12. Bxe7 Qxe7 13. Nxe4 dxe4 14. Nd2 f5 15. Rfd1 e5 16. d5 Qd6 17. Nf1 Nf6 18. Ng3 g6 19. Kh1 Ne8 20. a3 Qf6 21. Rg1 Nd6 22. f3 exf3 23. gxf3 Kh8 24. Rg2 Qh4 25. b3 Rae8 26. Rcg1 Bc8 27. Qb2 Qf6 28. a4 a5 29. Ne2 Bd7 30. Bc2 Re7 1/2-1/2

[Event "CZE-ch Youth B16 2022"]
[Site "Luhacovice"]
[Date "2022.03.17"]
[Round "7.2"]
[White "Winter, Ondrej"]
[Black "Soucek, Petr"]
[Result "0-1"]
[ECO "C50"]
[WhiteElo "2147"]
[BlackElo "2194"]
[Annotator "ChessBase"]
[PlyCount "68"]
[EventDate "2022.03.12"]
[EventType "swiss"]
[EventCountry "CZE"]
[SourceTitle "playchess.com"]
[Source "ChessBase"]
[SourceQuality "1"]
[TimeControl "40/5400+30:1800+30"]

1. e4 {[%emt 0:00:03]} e5 {[%emt 0:00:05]} 2. Nf3 {[%emt 0:00:04]} Nc6 {[%emt 0:00:03]} 3. Bc4 {[%emt 0:00:04]} Bc5 {[%emt 0:00:06]} 4. O-O {[%emt 0:00:12]} Nf6 {[%emt 0:00:06]} 5. d3 {[%emt 0:00:03]} O-O {[%emt 0:00:05]} 6. Re1 {[%emt 0:01:32]} h6 {[%emt 0:07:04]} 7. c3 {[%emt 0:01:25]} d6 {[%emt 0:03:13]} 8. Nbd2 {[%emt 0:00:44]} Be6 {[%emt 0:03:50]} 9. a4 {[%emt 0:10:51]} Ng4 {[%emt 0:15:17]} 10. Re2 {[%emt 0:01:59]} Bxc4 {[%emt 0:00:49]} 11. Nxc4 {[%emt 0:10:21]} d5 {[%emt 0:00:28]} 12. Ne3 {[%emt 0:17:42]} dxe4 {[%emt 0:09:07]} 13. dxe4 {[%emt 0:00:17]} Qxd1+ {[%emt 0:04:52]} 14. Nxd1 {[%emt 0:00:12]} Rfd8 {[%emt 0:04:34]} 15. Ne3 {[%emt 0:00:17]} Bxe3 {[%emt 0:04:42]} 16. Bxe3 {[%emt 0:00:58]} Na5 {[%emt 0:00:48]} 17. h3 {[%emt 0:10:16]} Nxe3 {[%emt 0:03:15]} 18. Rxe3 {[%emt 0:00:03]} f6 {[%emt 0:00:38]} 19. Ree1 {[%emt 0:20:01]} Rd6 {[%emt 0:02:05]} 20. Kf1 {[%emt 0:00:21]} Rad8 {[%emt 0:00:20]} 21. Ke2 {[%emt 0:01:00]} Nb3 {[%emt 0:01:10]} 22. Rad1 {[%emt 0:12:06]} Nc5 {[%emt 0:06:40]} 23. Rxd6 {[%emt 0:00:29]} Rxd6 {[%emt 0:00:04]} 24. Nd2 {[%emt 0:01:35]} Nxa4 {[%emt 0:03:52]} 25. Ra1 {[%emt 0:04:00]} Ra6 {[%emt 0:00:11]} 26. Nb3 {[%emt 0:04:32]} Kf7 {[%emt 0:08:27]} 27. Kd2 {[%emt 0:00:10]} Nxb2 {[%emt 0:09:35]} 28. Rxa6 {[%emt 0:00:15]} bxa6 {[%emt 0:00:04]} 29. Kc2 {[%emt 0:01:25]} Na4 {[%emt 0:02:02]} 30. c4 {[%emt 0:00:15]} Ke6 {[%emt 0:00:35]} 31. f3 {[%emt 0:01:31]} Kd6 {[%emt 0:00:12]} 32. Na5 {[%emt 0:00:42]} Nc5 {[%emt 0:00:28]} 33. Kc3 {[%emt 0:00:31]} c6 {[%emt 0:00:40]} 34. Kc2 {[%emt 0:01:01]} Kc7 {[%emt 0:00:14]} 0-1

[Event "CZE-ch Youth B16 2022"]
[Site "Luhacovice"]
[Date "2022.03.17"]
[Round "7.3"]
[White "Dolensky, Filip"]
[Black "Hak, David"]
[Result "1/2-1/2"]
[ECO "B40"]
[WhiteElo "2021"]
[BlackElo "2132"]
[Annotator "NA"]
[PlyCount "56"]
[EventDate "2022.03.12"]
[EventType "swiss"]
[EventCountry "CZE"]
[SourceTitle "playchess.com"]
[Source "ChessBase"]
[SourceQuality "1"]
[TimeControl "40/5400+30:1800+30"]

1. e4 {[%emt 0:00:08]} c5 {[%emt 0:00:01]} 2. Nf3 {[%emt 0:00:08]} e6 {[%emt 0:00:30]} 3. c3 {[%emt 0:01:26]} d5 {[%emt 0:02:36]} 4. exd5 {[%emt 0:00:47]} exd5 {[%emt 0:00:30]} 5. d4 {[%emt 0:00:09]} Nf6 {[%emt 0:00:57]} 6. Bb5+ {[%emt 0:01:52]} Bd7 {[%emt 0:00:33]} 7. Bxd7+ {[%emt 0:00:08]} Nbxd7 {[%emt 0:00:54]} 8. O-O {[%emt 0:01:10]} Be7 {[%emt 0:00:26]} 9. dxc5 {[%emt 0:00:07]} Nxc5 {[%emt 0:00:31]} 10. Be3 {[%emt 0:01:53]} O-O {[%emt 0:03:21]} 11. Nbd2 {[%emt 0:00:39]} Nfe4 {[%emt 0:10:29]} 12. Nb3 $14 {[%emt 0:02:20]} Ne6 {[%emt 0:12:57]} 13. Nbd4 {[%emt 0:02:13]} Bd6 {[%emt 0:01:11]} 14. Nf5 {[%emt 0:02:23]} Kh8 {[%emt 0:09:53]} 15. Nxd6 {[%emt 0:01:15]} Qxd6 {[%emt 0:00:06]} 16. Qb3 {[%emt 0:02:48]} f5 {[%emt 0:21:50]} 17. Rad1 {[%emt 0:04:57]} Nc7 {[%emt 0:12:45]} 18. Bd4 {[%emt 0:04:12]} Rfe8 {[%emt 0:04:42]} 19. c4 {[%emt 0:12:00]} dxc4 {[%emt 0:01:24]} 20. Qxc4 {[%emt 0:01:39]} Qe7 {[%emt 0:01:17]} 21. Ne5 {[%emt 0:10:50]} Ne6 {[%emt 0:00:28]} 22. Be3 {[%emt 0:07:53]} Rac8 {[%emt 0:00:49]} 23. Qb3 {[%emt 0:01:51]} N6c5 {[%emt 0:00:21]} 24. Nf7+ {[%emt 0:02:12]} Kg8 {[%emt 0:00:02]} 25. Nh6+ {[%emt 0:00:46]} Kh8 {[%emt 0:00:01]} 26. Nf7+ {[%emt 0:08:10]} Kg8 {[%emt 0:00:01]} 27. Nh6+ {[%emt 0:01:19]} Kh8 {[%emt 0:00:01]} 28. Nf7+ {[%emt 0:01:05]} Kg8 {[%emt 0:00:02]} 1/2-1/2

[Event "CZE-ch Youth B16 2022"]
[Site "Luhacovice"]
[Date "2022.03.17"]
[Round "7.4"]
[White "Paseka, Matyas"]
[Black "Stejskal, Michal"]
[Result "1/2-1/2"]
[ECO "C05"]
[WhiteElo "2058"]
[BlackElo "1857"]
[Annotator "NA"]
[PlyCount "61"]
[EventDate "2022.03.12"]
[EventType "swiss"]
[EventCountry "CZE"]
[SourceTitle "playchess.com"]
[Source "ChessBase"]
[SourceQuality "1"]
[TimeControl "40/5400+30:1800+30"]

1. e4 {[%emt 0:00:03]} e6 {[%emt 0:00:13]} 2. d4 {[%emt 0:00:06]} d5 {[%emt 0:00:07]} 3. Nd2 {[%emt 0:00:06]} Nf6 {[%emt 0:00:11]} 4. e5 {[%emt 0:00:06]} Nfd7 {[%emt 0:00:07]} 5. Bd3 {[%emt 0:00:14]} c5 {[%emt 0:00:15]} 6. c3 {[%emt 0:00:05]} b6 {[%emt 0:00:30]} 7. Ne2 {[%emt 0:04:48]} Ba6 {[%emt 0:00:45]} 8. Bxa6 {[%emt 0:00:46]} Nxa6 {[%emt 0:00:06]} 9. a3 {[%emt 0:00:32]} Nc7 {[%emt 0:04:43]} 10. O-O {[%emt 0:01:12]} Be7 {[%emt 0:03:22]} 11. f4 {[%emt 0:02:28]} f5 $11 {[%emt 0:01:02]} 12. Nf3 {[%emt 0:20:14]} O-O {[%emt 0:02:36]} 13. Be3 {[%emt 0:01:15]} Qe8 {[%emt 0:05:10]} 14. h3 {[%emt 0:10:41]} h6 {[%emt 0:09:51]} 15. Qd2 {[%emt 0:07:52]} b5 {[%emt 0:04:34]} 16. Rfc1 {[%emt 0:11:13]} Nb6 {[%emt 0:10:08]} 17. b3 {[%emt 0:00:33]} c4 {[%emt 0:04:32]} 18. b4 {[%emt 0:00:59]} a5 {[%emt 0:00:47]} 19. Kf2 {[%emt 0:04:35]} axb4 {[%emt 0:04:12]} 20. axb4 {[%emt 0:00:08]} Ra4 {[%emt 0:02:19]} 21. Ne1 {[%emt 0:04:04]} g5 {[%emt 0:03:56]} 22. g3 {[%emt 0:03:09]} Qh5 {[%emt 0:00:50]} 23. Kg2 g4 24. h4 {[%emt 0:02:16]} Rfa8 {[%emt 0:07:42]} 25. Nc2 {[%emt 0:00:49]} R8a7 {[%emt 0:00:48]} 26. Bf2 {[%emt 0:01:05]} Qe8 {[%emt 0:00:15]} 27. Qd1 {[%emt 0:03:15]} Qa8 {[%emt 0:00:40]} 28. Be1 {[%emt 0:01:45]} Kf7 {[%emt 0:04:39]} 29. Kf2 {[%emt 0:01:47]} Ke8 {[%emt 0:01:02]} 30. Rcb1 {[%emt 0:00:30]} Kd7 {[%emt 0:01:52]} 31. Ke3 {[%emt 0:00:39]} 1/2-1/2

[Event "CZE-ch Youth B16 2022"]
[Site "Luhacovice"]
[Date "2022.03.17"]
[Round "7.5"]
[White "Janous, Marek"]
[Black "Jirasko, Miroslav"]
[Result "1-0"]
[ECO "B52"]
[WhiteElo "2056"]
[BlackElo "1933"]
[Annotator "ChessBase"]
[PlyCount "79"]
[EventDate "2022.03.12"]
[EventType "swiss"]
[EventCountry "CZE"]
[SourceTitle "playchess.com"]
[Source "ChessBase"]
[SourceQuality "1"]
[TimeControl "40/5400+30:1800+30"]

1. e4 {[%emt 0:00:08]} c5 {[%emt 0:00:15]} 2. Nf3 {[%emt 0:00:08]} d6 {[%emt 0:00:06]} 3. Bb5+ {[%emt 0:01:15]} Bd7 {[%emt 0:00:07]} 4. Bxd7+ {[%emt 0:00:05]} Nxd7 {[%emt 0:00:14]} 5. O-O {[%emt 0:00:46]} Ngf6 {[%emt 0:04:23]} 6. Qe2 {[%emt 0:12:02]} Rc8 {[%emt 0:00:26]} 7. Rd1 e6 8. d4 {[%emt 0:05:32]} cxd4 {[%emt 0:01:30]} 9. Nxd4 {[%emt 0:00:06]} a6 {[%emt 0:02:06]} 10. c4 {[%emt 0:14:12]} Be7 {[%emt 0:00:19]} 11. f3 {[%emt 0:00:55]} O-O {[%emt 0:19:52]} 12. Be3 {[%emt 0:01:18]} d5 {[%emt 0:05:18]} 13. Nd2 {[%emt 0:13:45]} dxe4 {[%emt 0:14:41]} 14. Nxe4 {[%emt 0:01:52]} Nxe4 {[%emt 0:02:08]} 15. fxe4 {[%emt 0:00:50]} Qc7 {[%emt 0:02:05]} 16. Rac1 {[%emt 0:01:27]} Bd6 {[%emt 0:02:23]} 17. Nf3 {[%emt 0:01:17]} Ne5 {[%emt 0:03:15]} 18. Nd4 {[%emt 0:08:47]} Ng6 {[%emt 0:12:31]} 19. g3 {[%emt 0:03:58]} Rce8 {[%emt 0:04:21]} 20. c5 {[%emt 0:02:31]} Bxg3 {[%emt 0:08:31]} 21. hxg3 {[%emt 0:03:16]} Qxg3+ {[%emt 0:00:07]} 22. Kf1 {[%emt 0:04:12]} f5 {[%emt 0:00:20]} 23. e5 {[%emt 0:01:33]} f4 {[%emt 0:00:59]} 24. Bf2 {[%emt 0:00:49]} Qh3+ {[%emt 0:00:16]} 25. Ke1 {[%emt 0:00:17]} f3 {[%emt 0:03:26]} 26. Qe4 {[%emt 0:08:23]} Rf4 {[%emt 0:01:02]} 27. Qe3 {[%emt 0:04:39]} Qg4 {[%emt 0:01:40]} 28. Kd2 {[%emt 0:00:47]} Re4 {[%emt 0:00:54]} 29. Rg1 {[%emt 0:01:52]} Rxe3 {[%emt 0:07:00]} 30. Rxg4 {[%emt 0:00:06]} Rxe5 {[%emt 0:00:56]} 31. Bg3 {[%emt 0:03:06]} Rd5 {[%emt 0:03:15]} 32. Ke3 {[%emt 0:00:42]} Ne7 {[%emt 0:01:24]} 33. Re4 {[%emt 0:03:11]} Nf5+ {[%emt 0:00:31]} 34. Nxf5 {[%emt 0:00:06]} Rxf5 {[%emt 0:00:03]} 35. Bd6 {[%emt 0:01:09]} g5 {[%emt 0:00:52]} 36. Rf1 {[%emt 0:00:21]} Kf7 {[%emt 0:00:39]} 37. Rxf3 {[%emt 0:00:38]} Kg6 {[%emt 0:00:20]} 38. Rxf5 {[%emt 0:00:05]} Kxf5 {[%emt 0:00:06]} 39. Rb4 {[%emt 0:01:12]} g4 {[%emt 0:00:39]} 40. Rxb7 {[%emt 0:00:06]} 1-0

[Event "CZE-ch Youth B16 2022"]
[Site "Luhacovice"]
[Date "2022.03.17"]
[Round "7.6"]
[White "Bezdek, Tomas"]
[Black "Vilimek, Vit"]
[Result "0-1"]
[ECO "B18"]
[WhiteElo "1855"]
[BlackElo "1794"]
[Annotator "NA"]
[PlyCount "60"]
[EventDate "2022.03.12"]
[EventType "swiss"]
[EventCountry "CZE"]
[SourceTitle "playchess.com"]
[Source "ChessBase"]
[SourceQuality "1"]
[TimeControl "40/5400+30:1800+30"]

1. e4 {[%emt 0:00:06]} c6 {[%emt 0:00:04]} 2. d4 {[%emt 0:01:04]} d5 {[%emt 0:02:39]} 3. Nc3 {[%emt 0:00:15]} dxe4 {[%emt 0:00:09]} 4. Nxe4 {[%emt 0:00:02]} Bf5 {[%emt 0:00:10]} 5. Ng3 {[%emt 0:00:13]} Bg6 {[%emt 0:00:07]} 6. Nf3 {[%emt 0:00:18]} e6 {[%emt 0:00:36]} 7. Bd3 {[%emt 0:02:14]} Bd6 {[%emt 0:00:51]} 8. Bg5 {[%emt 0:06:42]} Nf6 {[%emt 0:07:10]} 9. Qe2 {[%emt 0:17:14]} Nbd7 {[%emt 0:01:23]} (9... Bxd3 $11 {should be considered.} 10. Qxd3 Nbd7) 10. Bxg6 $14 {[%emt 0:02:21]} hxg6 {[%emt 0:00:33]} 11. Ne4 {[%emt 0:02:30]} Be7 {[%emt 0:05:56]} 12. Bxf6 {[%emt 0:00:54]} Nxf6 {[%emt 0:00:09]} 13. O-O {[%emt 0:08:51]} Qd5 {[%emt 0:04:33]} 14. Nxf6+ {[%emt 0:02:37]} gxf6 {[%emt 0:00:10]} 15. c4 {[%emt 0:10:05]} Qh5 {[%emt 0:05:20]} 16. d5 {[%emt 0:00:32]} g5 {[%emt 0:03:37]} 17. h3 {[%emt 0:10:35]} g4 {[%emt 0:07:22]} 18. Nd4 {[%emt 0:07:36]} gxh3 {[%emt 0:07:53]} 19. Qxh5 {[%emt 0:00:02]} Rxh5 {[%emt 0:00:09]} 20. dxc6 {[%emt 0:01:30]} hxg2 {[%emt 0:03:16]} 21. Kxg2 {[%emt 0:00:38]} bxc6 {[%emt 0:00:08]} 22. Nxc6 {[%emt 0:09:12]} Bc5 {[%emt 0:03:32]} 23. b4 {[%emt 0:00:34]} Kd7 {[%emt 0:01:12]} 24. b5 {[%emt 0:00:54]} Kc7 {[%emt 0:05:14]} 25. Kf3 {[%emt 0:14:38]} Rh4 {[%emt 0:06:01]} 26. Rac1 {[%emt 0:00:56]} Rah8 {[%emt 0:01:56]} 27. Rc2 {[%emt 0:00:39]} Rh2 {[%emt 0:05:04]} 28. Rg1 {[%emt 0:00:18]} R8h5 {[%emt 0:03:07]} 29. Rg7 {[%emt 0:00:43]} Rf5+ {[%emt 0:00:20]} 30. Kg3 {[%emt 0:00:27]} Bd6+ {[%emt 0:00:13]} 0-1

[Event "CZE-ch Youth B16 2022"]
[Site "Luhacovice"]
[Date "2022.03.17"]
[Round "7.7"]
[White "Vaclavik, Jan"]
[Black "Vasinek, Martin"]
[Result "1-0"]
[ECO "B38"]
[WhiteElo "1997"]
[BlackElo "1594"]
[Annotator "ChessBase"]
[PlyCount "73"]
[EventDate "2022.03.12"]
[EventType "swiss"]
[EventCountry "CZE"]
[SourceTitle "playchess.com"]
[Source "ChessBase"]
[SourceQuality "1"]
[TimeControl "40/5400+30:1800+30"]

1. e4 {[%emt 0:00:10]} c5 {[%emt 0:00:04]} 2. Nf3 {[%emt 0:00:05]} Nc6 {[%emt 0:00:04]} 3. d4 {[%emt 0:00:05]} cxd4 {[%emt 0:00:04]} 4. Nxd4 {[%emt 0:00:07]} g6 {[%emt 0:00:05]} 5. c4 {[%emt 0:00:06]} Bg7 {[%emt 0:00:07]} 6. Be3 {[%emt 0:00:18]} Nf6 {[%emt 0:00:30]} 7. Nc3 {[%emt 0:00:27]} O-O {[%emt 0:02:00]} 8. Be2 {[%emt 0:00:10]} e6 {[%emt 0:00:55]} 9. Nb3 {[%emt 0:15:51]} d6 {[%emt 0:13:24]} 10. O-O {[%emt 0:02:24]} Qe7 {[%emt 0:07:12]} 11. Qd2 {[%emt 0:06:11]} Rd8 {[%emt 0:02:22]} 12. Rad1 {[%emt 0:02:10]} b6 {[%emt 0:02:08]} 13. Bf4 {[%emt 0:05:41]} e5 {[%emt 0:01:44]} 14. Bg5 {[%emt 0:00:29]} Be6 {[%emt 0:07:40]} 15. Qe3 {[%emt 0:33:56]} Qf8 {[%emt 0:07:37]} 16. f4 {[%emt 0:05:36]} Rdc8 {[%emt 0:23:47]} 17. f5 {[%emt 0:03:20]} gxf5 {[%emt 0:03:20]} 18. exf5 {[%emt 0:00:12]} Bd7 {[%emt 0:00:39]} 19. Nd5 {[%emt 0:01:40]} Qd8 {[%emt 0:04:41]} 20. Nd2 {[%emt 0:06:17]} Nd4 {[%emt 0:01:57]} 21. Bxf6 {[%emt 0:00:31]} Bxf6 {[%emt 0:00:20]} 22. Ne4 {[%emt 0:00:12]} Bg7 {[%emt 0:04:02]} 23. f6 {[%emt 0:00:45]} Bf8 {[%emt 0:00:24]} 24. Bd3 {[%emt 0:02:25]} Bf5 {[%emt 0:03:06]} 25. Qg5+ {[%emt 0:01:27]} Bg6 {[%emt 0:00:13]} 26. Ne7+ {[%emt 0:02:12]} Bxe7 {[%emt 0:00:37]} 27. fxe7 {[%emt 0:00:07]} Qc7 {[%emt 0:00:14]} 28. Nf6+ {[%emt 0:00:11]} Kh8 {[%emt 0:00:25]} 29. Bxg6 {[%emt 0:01:02]} fxg6 {[%emt 0:00:18]} 30. Nd5 {[%emt 0:00:57]} Qc5 {[%emt 0:02:35]} 31. Qf6+ {[%emt 0:00:06]} Kg8 {[%emt 0:00:11]} 32. Qf7+ {[%emt 0:02:07]} Kh8 {[%emt 0:00:05]} 33. Kh1 {[%emt 0:00:41]} Qxc4 {[%emt 0:01:01]} 34. Qf8+ {[%emt 0:02:44]} Rxf8 {[%emt 0:00:28]} 35. Rxf8+ {[%emt 0:00:06]} Kg7 {[%emt 0:00:11]} 36. Rxa8 {[%emt 0:00:06]} Qe2 {[%emt 0:02:43]} 37. Ne3 {[%emt 0:00:08]} 1-0

[Event "CZE-ch Youth B16 2022"]
[Site "Luhacovice"]
[Date "2022.03.17"]
[Round "7.8"]
[White "Kubiczek, Michal"]
[Black "Dedek, Jan"]
[Result "1/2-1/2"]
[ECO "D11"]
[WhiteElo "1720"]
[BlackElo "1963"]
[Annotator "ChessBase"]
[PlyCount "80"]
[EventDate "2022.03.12"]
[EventType "swiss"]
[EventCountry "CZE"]
[SourceTitle "playchess.com"]
[Source "ChessBase"]
[SourceQuality "1"]
[TimeControl "40/5400+30:1800+30"]

1. d4 {[%emt 0:00:06]} d5 {[%emt 0:00:10]} 2. c4 {[%emt 0:00:08]} c6 {[%emt 0:00:39]} 3. Nf3 {[%emt 0:00:13]} Nf6 {[%emt 0:00:07]} 4. g3 {[%emt 0:00:29]} dxc4 {[%emt 0:00:36]} 5. Bg2 {[%emt 0:05:06]} b5 {[%emt 0:01:45]} 6. Ne5 {[%emt 0:03:11]} Bb7 {[%emt 0:00:18]} 7. a4 {[%emt 0:02:34]} a6 {[%emt 0:01:12]} 8. O-O {[%emt 0:00:52]} e6 {[%emt 0:03:03]} 9. b3 {[%emt 0:01:39]} cxb3 {[%emt 0:02:39]} 10. Bb2 {[%emt 0:00:34]} Be7 {[%emt 0:01:57]} 11. Nd2 {[%emt 0:01:27]} O-O {[%emt 0:12:39]} 12. Nxb3 {[%emt 0:02:26]} Nd5 {[%emt 0:01:52]} 13. Nc5 {[%emt 0:11:07]} Qc7 {[%emt 0:03:00]} 14. Qd2 {[%emt 0:06:32]} a5 {[%emt 0:19:31]} 15. e4 {[%emt 0:21:20]} Nb4 {[%emt 0:00:16]} 16. Rfd1 {[%emt 0:07:19]} Rd8 {[%emt 0:07:30]} 17. Qc3 {[%emt 0:04:54]} N8a6 {[%emt 0:05:54]} 18. Nxb7 {[%emt 0:10:14]} Qxb7 {[%emt 0:00:20]} 19. axb5 {[%emt 0:00:25]} Qxb5 {[%emt 0:02:48]} 20. Bf1 {[%emt 0:00:49]} Qb6 {[%emt 0:02:11]} 21. Nc4 {[%emt 0:01:39]} Qb8 {[%emt 0:01:46]} 22. Nxa5 {[%emt 0:03:21]} Bf6 {[%emt 0:04:08]} 23. e5 {[%emt 0:01:57]} Be7 {[%emt 0:00:01]} 24. Bg2 {[%emt 0:06:49]} Qb6 {[%emt 0:02:55]} 25. Nxc6 {[%emt 0:05:09]} Nxc6 {[%emt 0:00:13]} 26. Qxc6 {[%emt 0:00:16]} Qxb2 {[%emt 0:00:17]} 27. Rxa6 {[%emt 0:00:10]} Rxa6 {[%emt 0:00:30]} 28. Qxa6 {[%emt 0:00:02]} Rxd4 {[%emt 0:00:22]} 29. Qc8+ {[%emt 0:00:38]} Bf8 {[%emt 0:00:06]} 30. Rxd4 {[%emt 0:00:12]} Qxd4 {[%emt 0:00:06]} 31. Qb8 {[%emt 0:00:48]} g6 {[%emt 0:01:29]} 32. Bf1 {[%emt 0:02:28]} Kg7 {[%emt 0:00:15]} 33. Qb5 {[%emt 0:00:26]} Bc5 {[%emt 0:01:10]} 34. Qe2 {[%emt 0:00:06]} Qa1 {[%emt 0:01:55]} 35. Kg2 {[%emt 0:00:12]} h5 {[%emt 0:00:09]} 36. h4 {[%emt 0:01:17]} Qd4 {[%emt 0:00:34]} 37. Kg1 {[%emt 0:01:20]} Ba7 {[%emt 0:00:36]} 38. Kg2 {[%emt 0:00:26]} Bb8 {[%emt 0:00:14]} 39. f4 {[%emt 0:00:14]} Ba7 {[%emt 0:00:08]} 40. Kh3 {[%emt 0:00:31]} Qg1 {[%emt 0:07:52]} 1/2-1/2

[Event "CZE-ch Youth B16 2022"]
[Site "Luhacovice"]
[Date "2022.03.17"]
[Round "7.9"]
[White "Trojan, Matyas"]
[Black "Zezula, Jakub"]
[Result "0-1"]
[ECO "C50"]
[WhiteElo "1582"]
[BlackElo "1891"]
[Annotator "NA"]
[PlyCount "74"]
[EventDate "2022.03.12"]
[EventType "swiss"]
[EventCountry "CZE"]
[SourceTitle "playchess.com"]
[Source "ChessBase"]
[SourceQuality "1"]
[TimeControl "40/5400+30:1800+30"]

1. e4 e5 2. Nf3 Nc6 3. Bc4 Bc5 4. d3 Nf6 5. O-O O-O 6. c3 d5 7. exd5 Nxd5 8. a4 a5 9. Nbd2 Nb6 10. Bb5 Bd6 11. Re1 Bg4 12. h3 Bh5 13. Ne4 f6 14. Ng3 Bf7 15. Bxc6 bxc6 16. Nf5 Re8 17. N3h4 Bf8 18. Re3 Kh8 $17 19. Rg3 Qd7 20. Ne3 Rad8 21. Qf3 Qxd3 22. Qxc6 Qd6 23. Qxd6 Rxd6 24. Nf3 c5 25. Kf1 Red8 26. Ke2 Nc4 27. Rg4 Nxe3 28. Bxe3 h5 29. Re4 Bg6 30. Rh4 Rb6 31. Bc1 Kg8 32. g4 Bd3+ 33. Ke3 c4 34. g5 Bc5+ 35. Kd2 Bxf2 36. Rxh5 e4 37. gxf6 exf3 0-1